fUSD/lending_fUSD_20240720
["ID","MTS","AMOUNT","RATE_DAILY","PERIOD"]
[332694081,1721452305034,-500.0,0.00033698,14]
[332694082,1721452305044,-889.12,0.00033698,14]
[332694083,1721452305054,-500.0,0.00033698,14]
[332694084,1721452305063,-1138.51,0.00033698,14]
[332694085,1721452305072,-1961.02,0.00033698,14]
[332694086,1721452305083,-500.0,0.00033698,14]
[332694087,1721452305092,-500.0,0.00033698,14]
[332694088,1721452305101,-151.0,0.00033698,7]
[332694089,1721452305112,-151.0,0.00033698,7]
[332694090,1721452305122,-500.0,0.00033698,14]
[332694091,1721452305132,-500.0,0.00033698,14]
[332694092,1721452305141,-504.18755325,0.00033698,14]
[332694093,1721452305151,-500.0,0.00033698,14]
[332694094,1721452305160,-500.0,0.00033698,14]
[332694095,1721452305171,-448.13,0.00033698,14]
[332694096,1721452305180,-504.37,0.00033698,14]
[332694097,1721452305189,-2681.2,0.00033698,14]
[332694098,1721452305199,-503.61243552,0.00033698,14]
[332694099,1721452305208,-539.61,0.00033698,14]
[332694100,1721452305218,-504.63,0.00033698,14]
[332694101,1721452305227,-500.0,0.00033698,14]
[332694102,1721452305237,-161.30740352,0.00033698,14]
[332694103,1721452305246,-500.0,0.00033698,14]
[332694104,1721452305255,-500.0,0.00033698,14]
[332694105,1721452305264,-500.0,0.00033698,14]
[332694106,1721452305274,-500.0,0.00033698,14]
[332694107,1721452305283,-508.14140401,0.00033698,14]
[332694108,1721452305293,-1822.16,0.00033698,14]
[332694109,1721452305302,-534.1,0.00033698,14]
[332694110,1721452305311,-1103.03,0.00033698,14]
[332694111,1721452305321,-500.0,0.00033698,14]
[332694112,1721452305331,-500.0,0.00033698,14]
[332694113,1721452305340,-506.97399644,0.00033698,14]
[332694114,1721452305351,-500.0,0.00033698,14]
[332694115,1721452305363,-151.53882717,0.00033698,14]
[332694116,1721452305373,-500.0,0.00033698,14]
[332694117,1721452305383,-500.0,0.00033698,14]
[332694118,1721452305392,-500.0,0.00033698,14]
[332694119,1721452305402,-500.0,0.00033698,14]
[332694120,1721452305412,-515.51,0.00033698,14]
[332694121,1721452305421,-500.0,0.00033698,14]
[332694122,1721452305431,-500.0,0.00033698,14]
[332694123,1721452305440,-1292.47,0.00033698,14]
[332694124,1721452305449,-500.0,0.00033698,14]
[332694125,1721452305458,-1052.37,0.00033698,14]
[332694126,1721452305468,-500.0,0.00033698,14]
[332694127,1721452305477,-500.0,0.00033698,14]
[332694128,1721452305486,-500.0,0.00033698,14]
[332694129,1721452305495,-4050.58,0.00033698,14]
[332694130,1721452305505,-500.0,0.00033698,14]
[332694131,1721452305514,-530.12411552,0.00033698,14]
[332694132,1721452305524,-504.1126579,0.00033698,14]
[332694133,1721452305533,-500.0,0.00033698,14]
[332694134,1721452305543,-500.0,0.00033698,14]
[332694135,1721452305552,-500.0,0.00033698,14]
[332694136,1721452305561,-500.0,0.00033698,14]
[332694137,1721452305571,-500.0,0.00033698,14]
[332694138,1721452305580,-500.0,0.00033698,14]
[332694139,1721452305590,-3121.76,0.00033698,14]
[332694140,1721452305602,-2985.13,0.00033698,14]
[332694141,1721452305612,-270.050766,0.00033698,7]
[332694142,1721452305622,-1811.8,0.00033698,14]
[332694143,1721452305631,-500.02691361,0.00033698,14]
[332694144,1721452305641,-5805.68,0.00033698,14]
[332694145,1721452305651,-500.0,0.00033698,14]
[332694146,1721452305660,-500.0,0.00033698,14]
[332694147,1721452305671,-505.20309036,0.00033698,14]
[332694148,1721452305680,-500.0,0.00033698,14]
[332694149,1721452305689,-503.3198509,0.00033698,14]
[332694150,1721452305699,-850.99,0.00033698,14]
[332694151,1721452305886,-500.0,0.00033698,14]
[332694152,1721452305898,-500.0,0.00033698,14]
[332694153,1721452305908,-507.284552,0.00033698,14]
[332694154,1721452305917,-500.0,0.00033698,14]
[332694155,1721452305927,-675.1,0.00033698,14]
[332694156,1721452305938,-500.0,0.00033698,14]
[332694157,1721452305948,-3021.16,0.00033698,14]
[332694158,1721452305957,-1654.29,0.00033698,14]
[332694159,1721452305966,-1244.24,0.00033698,14]
[332694160,1721452305975,-506.28353945,0.00033698,14]
[332694161,1721452305984,-515.52383582,0.00033698,14]
[332694162,1721452305994,-1175.27,0.00033698,14]
[332694163,1721452306003,-1743.54,0.00033698,14]
[332694164,1721452306012,-500.0,0.00033698,14]
[332694165,1721452306021,-636.39,0.00033698,14]
[332694166,1721452306030,-503.45333414,0.00033698,14]
[332694167,1721452306040,-500.0,0.00033698,14]
[332694168,1721452306050,-2447.5,0.00033698,14]
[332694169,1721452306059,-6951.69,0.00033698,14]
[332694170,1721452306068,-2718.0,0.00033698,14]
[332694171,1721452306077,-500.0,0.00033698,14]
[332694172,1721452306086,-506.84305454,0.00033698,14]
[332694173,1721452306096,-500.0,0.00033698,14]
[332694174,1721452306106,-500.0,0.00033698,14]
[332694175,1721452306117,-500.0,0.00033698,14]
[332694176,1721452306127,-908.8,0.00033698,14]
[332694177,1721452306135,-1800.06,0.00033698,14]
[332694178,1721452306145,-500.0,0.00033698,14]
[332694179,1721452306154,-975.93,0.00033698,14]
[332694180,1721452306163,-1738.49,0.00033698,14]
[332694181,1721452306172,-5201.38,0.00033698,14]
[332694182,1721452306181,-500.0,0.00033698,14]
[332694183,1721452306190,-714.27,0.00033698,14]
[332694184,1721452306200,-500.0,0.00033698,14]
[332694185,1721452306210,-9104.64,0.00033698,14]
[332694186,1721452306219,-500.0,0.00033698,14]
[332694187,1721452306228,-500.0,0.00033698,14]
[332694188,1721452306238,-504.41,0.00033698,14]
[332694189,1721452306247,-500.0,0.00033698,2]
[332694190,1721452306256,-506.576578,0.00033698,14]
[332694191,1721452306265,-505.36309033,0.00033698,14]
[332694192,1721452306275,-500.0,0.00033698,14]
[332694193,1721452306285,-500.0,0.00033698,14]
[332694194,1721452306295,-500.0,0.00033698,14]
[332694195,1721452306304,-500.0,0.00033698,14]
[332694196,1721452306313,-504.37349966,0.00033698,14]
[332694197,1721452306323,-500.0,0.00033698,14]
[332694198,1721452306331,-500.0,0.00033698,14]
[332694199,1721452306341,-5642.97,0.00033698,14]
[332694200,1721452306350,-1466.62,0.00033698,14]
[332694201,1721452306360,-1754.34,0.00033698,14]
[332694202,1721452306369,-1092.71,0.00033698,14]
[332694203,1721452306378,-500.0,0.00033698,14]
[332694204,1721452306387,-1704.32,0.00033698,14]
[332694205,1721452306396,-500.0,0.00033698,14]
[332694206,1721452306406,-504.99280331,0.00033698,14]
[332694207,1721452306415,-500.0,0.00033698,14]
[332694208,1721452306424,-500.0,0.00033698,7]
[332694209,1721452306433,-500.0,0.00033698,14]
[332694210,1721452306442,-500.0,0.00033698,14]
[332694211,1721452306451,-500.0,0.00033698,14]
[332694212,1721452306461,-4325.23,0.00033698,14]
[332694213,1721452306471,-506.49478506,0.00033698,14]
[332694214,1721452306480,-738.58,0.00033698,14]
[332694215,1721452306490,-814.05,0.00033698,14]
[332694216,1721452306500,-500.0,0.00033698,14]
[332694217,1721452306509,-731.2,0.00033698,14]
[332694218,1721452306519,-1471.14,0.00033698,14]
[332694219,1721452306529,-4935.97,0.00033698,14]
[332694220,1721452306538,-3510.37,0.00033698,14]
[332694221,1721452306547,-1229.29,0.00033698,14]
[332694222,1721452306557,-500.0,0.00033698,14]
[332694223,1721452306566,-1164.69,0.00033698,14]
[332694224,1721452306576,-439.72065941,0.00033698,14]
[332694225,1721452306585,-500.0,0.00033698,14]
[332694226,1721452306597,-3419.7,0.00033698,14]
[332694227,1721452306606,-517.01062803,0.00033698,14]
[332694228,1721452306617,-795.79,0.00033698,14]
[332694229,1721452306626,-1370.44,0.00033698,14]
[332694230,1721452306635,-438.82244415,0.00033698,14]
[332694231,1721452306646,-242.45950213,0.00033698,14]
[332694232,1721452306655,-636.48657978,0.00033698,14]
[332694233,1721452306664,-5518.78,0.00033698,14]
[332694234,1721452306675,-500.0,0.00033698,14]
[332694235,1721452306685,-500.0,0.00033698,14]
[332694236,1721452306695,-500.0,0.00033698,14]
[332694237,1721452306704,-855.69,0.00033698,14]
[332694238,1721452306713,-1428.43,0.00033698,14]
[332694239,1721452306723,-1414.58,0.00033698,14]
[332694240,1721452306732,-500.0,0.00033698,14]
[332694241,1721452306742,-1024.94,0.00033698,14]
[332694242,1721452306751,-1661.1,0.00033698,14]
[332694243,1721452306761,-1024.94,0.00033698,14]
[332694244,1721452306770,-500.66214699,0.00033698,14]
[332694245,1721452306779,-500.0,0.00033698,14]
[332694246,1721452306789,-417.674845,0.00033698,7]
[332694247,1721452306799,-417.674845,0.00033698,7]
[332694248,1721452306808,-500.0,0.00033698,14]
[332694249,1721452306818,-867.72,0.00033698,14]
[332694250,1721452306827,-500.0,0.00033698,14]
[332694251,1721452306836,-5718.78,0.00033698,14]
[332694252,1721452306845,-504.39687592,0.00033698,14]
[332694253,1721452306854,-601.33,0.00033698,14]
[332694254,1721452306865,-1256.52,0.00033698,14]
[332694255,1721452306875,-2364.4,0.00033698,14]
[332694256,1721452306884,-507.28167543,0.00033698,14]
[332694257,1721452306894,-417.674845,0.00033698,7]
[332694258,1721452306903,-417.674845,0.00033698,7]
[332694259,1721452306914,-1122.57,0.00033698,14]
[332694260,1721452306924,-500.0,0.00033698,14]
[332694261,1721452306934,-3777.43,0.00033698,14]
[332694262,1721452306945,-1287.89,0.00033698,14]
[332694263,1721452306956,-500.0,0.00033698,14]
[332694264,1721452306966,-2909.95,0.00033698,14]
[332694265,1721452306976,-503.69968294,0.00033698,14]
[332694266,1721452306985,-500.0,0.00033698,14]
[332694267,1721452306995,-500.0,0.00033698,14]
[332694268,1721452307004,-519.36,0.00033698,14]
[332694269,1721452307015,-500.0,0.00033698,14]
[332694270,1721452307025,-7748.76,0.00033698,14]
[332694271,1721452307035,-2623.21,0.00033698,14]
[332694272,1721452307045,-3248.84,0.00033698,14]
[332694273,1721452307055,-3223.85,0.00033698,14]
[332694274,1721452307064,-753.17,0.00033698,14]
[332694275,1721452307074,-502.24824605,0.00033698,14]
[332694276,1721452307083,-500.0,0.00033698,14]
[332694277,1721452307093,-1040.19,0.00033698,14]
[332694278,1721452307102,-500.0,0.00033698,14]
[332694279,1721452307113,-542.93796498,0.00033698,14]
[332694280,1721452307123,-1843.55,0.00033698,14]
[332694281,1721452307132,-505.4297051,0.00033698,14]
[332694282,1721452307142,-5092.61,0.00033698,14]
[332694283,1721452307151,-500.0,0.00033698,14]
[332694284,1721452307160,-417.72913062,0.00033698,14]
[332694285,1721452307169,-985.71,0.00033698,14]
[332694286,1721452307178,-500.0,0.00033698,14]
[332694287,1721452307187,-2260.04,0.00033698,14]
[332694288,1721452307197,-500.0,0.00033698,14]
[332694289,1721452307206,-500.0,0.00033698,14]
[332694290,1721452307215,-1121.01,0.00033698,14]
[332694291,1721452307225,-1524.14,0.00033698,14]
[332694292,1721452307234,-1503.86,0.00033698,14]
[332694293,1721452307243,-500.0,0.00033698,14]
[332694294,1721452307252,-690.64,0.00033698,14]
[332694295,1721452307261,-3751.65,0.00033698,14]
[332694296,1721452307270,-410.80070916,0.00033698,14]
[332694297,1721452307280,-513.40638546,0.00033698,14]
[332694298,1721452307289,-1947.42,0.00033698,14]
[332694299,1721452307298,-507.53535594,0.00033698,14]
[332694300,1721452307307,-950.08,0.00033698,14]
[332694301,1721452307317,-1504.54,0.00033698,14]
[332694302,1721452307326,-500.0,0.00033698,14]
[332694303,1721452307336,-500.0,0.00033698,14]
[332694304,1721452307345,-2533.37,0.00033698,14]
[332694305,1721452307354,-500.0,0.00033698,14]
[332694306,1721452307365,-896.76,0.00033698,14]
[332694307,1721452307374,-500.0,0.00033698,14]
[332694308,1721452307383,-552.56,0.00033698,14]
[332694309,1721452307395,-507.17699839,0.00033698,14]
[332694310,1721452307404,-14489.0,0.00033698,14]
[332694311,1721452307413,-1465.63,0.00033698,14]
[332694312,1721452307422,-500.0,0.00033698,14]
[332694313,1721452307431,-698.57,0.00033698,14]
[332694314,1721452307440,-2480.15,0.00033698,14]
[332694315,1721452307449,-696.41,0.00033698,14]
[332694316,1721452307459,-500.0,0.00033698,14]
[332694317,1721452307468,-500.0,0.00033698,14]
[332694318,1721452307477,-503.66066848,0.00033698,14]
[332694319,1721452307487,-501.84143485,0.00033698,14]
[332694320,1721452307496,-151.0,0.00033698,7]
[332694321,1721452307506,-151.0,0.00033698,7]
[332694322,1721452307515,-2104.4,0.00033698,14]
[332694323,1721452307525,-3078.84,0.00033698,14]
[332694324,1721452307535,-500.0,0.00033698,14]
[332694325,1721452307545,-884.369856,0.00033698,7]
[332694326,1721452307555,-703.93,0.00033698,14]
[332694327,1721452307564,-1047.59,0.00033698,14]
[332694328,1721452307574,-884.369856,0.00033698,7]
[332694329,1721452307583,-508.35198668,0.00033698,14]
[332694330,1721452307596,-500.0,0.00033698,14]
[332694331,1721452307605,-3181.26,0.00033698,14]
[332694332,1721452307615,-151.0,0.00033698,7]
[332694333,1721452307624,-505.20498466,0.00033698,14]
[332694334,1721452307635,-500.0,0.00033698,14]
[332694335,1721452307643,-151.0,0.00033698,7]
[332694336,1721452307653,-884.369856,0.00033698,7]
[332694337,1721452307662,-884.369856,0.00033698,7]
[332694338,1721452307673,-3280.76,0.00033698,14]
[332694339,1721452307682,-2612.66,0.00033698,14]
[332694340,1721452307691,-458.13686744,0.00033698,14]
[332694341,1721452307701,-1071.06,0.00033698,14]
[332694342,1721452307710,-1049.87,0.00033698,14]
[332694343,1721452307719,-792.59,0.00033698,14]
[332694344,1721452307728,-1022.95,0.00033698,14]
[332694345,1721452307737,-6852.05,0.00033698,14]
[332694346,1721452307747,-621.06,0.00033698,14]
[332694347,1721452307756,-500.0,0.00033698,14]
[332694348,1721452307766,-500.0,0.00033698,14]
[332694349,1721452307775,-840.65,0.00033698,14]
[332694350,1721452307785,-504.75589909,0.00033698,14]
[332694351,1721452307795,-500.0,0.00033698,14]
[332694352,1721452307804,-5155.85,0.00033698,14]
[332694353,1721452307814,-977.33,0.00033698,14]
[332694354,1721452307824,-2556.95,0.00033698,14]
[332694355,1721452307833,-501.43181643,0.00033698,14]
[332694356,1721452307843,-7638.3,0.00033698,14]
[332694357,1721452307852,-290.76240949,0.00033698,14]
[332694358,1721452307861,-2668.32,0.00033698,14]
[332694359,1721452307870,-680.34,0.00033698,14]
[332694360,1721452307879,-503.12261795,0.00033698,14]
[332694361,1721452307889,-747.2,0.00033698,14]
[332694362,1721452307899,-939.37,0.00033698,14]
[332694363,1721452307908,-7834.82,0.00033698,14]
[332694364,1721452307917,-500.0,0.00033698,14]
[332694365,1721452307926,-1116.468242,0.00033698,7]
[332694366,1721452307936,-503.00404329,0.00033698,14]
[332694367,1721452307945,-2497.76,0.00033698,14]
[332694368,1721452307954,-200.0,0.00033698,7]
[332694369,1721452307964,-1116.468242,0.00033698,7]
[332694370,1721452307973,-500.0,0.00033698,14]
[332694371,1721452307983,-675.73,0.00033698,14]
[332694372,1721452307992,-502.67919071,0.00033698,14]
[332694373,1721452308001,-873.37,0.00033698,14]
[332694374,1721452308011,-1766.02,0.00033698,14]
[332694375,1721452308020,-1231.81,0.00033698,14]
[332694376,1721452308029,-1116.468242,0.00033698,7]
[332694377,1721452308038,-1116.468242,0.00033698,7]
[332694378,1721452308047,-1298.26,0.00033698,14]
[332694379,1721452308056,-2756.06,0.00033698,14]
[332694380,1721452308066,-500.0,0.00033698,14]
[332694381,1721452308076,-500.0,0.00033698,14]
[332694382,1721452308085,-3099.39,0.00033698,14]
[332694383,1721452308095,-822.69,0.00033698,14]
[332694384,1721452308104,-500.0,0.00033698,14]
[332694385,1721452308114,-1482.76,0.00033698,14]
[332694386,1721452308123,-738.39,0.00033698,14]
[332694387,1721452308132,-1608.13,0.00033698,14]
[332694388,1721452308142,-500.0,0.00033698,14]
[332694389,1721452308151,-6235.61,0.00033698,14]
[332694390,1721452308160,-1663.14,0.00033698,14]
[332694391,1721452308170,-3638.21,0.00033698,14]
[332694392,1721452308179,-500.0,0.00033698,14]
[332694393,1721452308188,-1194.14,0.00033698,14]
[332694394,1721452308197,-500.0,0.00033698,30]
[332694395,1721452308206,-500.0,0.00033698,14]
[332694396,1721452308215,-500.0,0.00033698,14]
[332694397,1721452308225,-500.0,0.00033698,14]
[332694398,1721452308234,-500.0,0.00033698,14]
[332694399,1721452308243,-500.0,0.00033698,14]
[332694400,1721452308252,-6855.68,0.00033698,14]
[332694401,1721452308261,-500.0,0.00033698,14]
[332694402,1721452308271,-159.23803576,0.00033698,14]
[332694403,1721452308280,-1491.07,0.00033698,14]
[332694404,1721452308289,-584.18956335,0.00033698,14]
[332694405,1721452308298,-503.72985783,0.00033698,14]
[332694406,1721452308307,-500.0,0.00033698,14]
[332694407,1721452308316,-500.0,0.00033698,14]
[332694408,1721452308325,-500.0,0.00033698,14]
[332694409,1721452308335,-500.0,0.00033698,14]
[332694410,1721452308344,-3305.37,0.00033698,14]
[332694411,1721452308353,-3485.91,0.00033698,14]
[332694412,1721452308363,-500.0,0.00033698,14]
[332694413,1721452308372,-500.0,0.00033698,14]
[332694414,1721452308382,-3149.89,0.00033698,14]
[332694415,1721452308391,-500.0,0.00033698,14]
[332694416,1721452308401,-558.69,0.00033698,14]
[332694417,1721452308410,-500.0,0.00033698,14]
[332694418,1721452308419,-953.68,0.00033698,14]
[332694419,1721452308429,-1857.46,0.00033698,14]
[332694420,1721452308439,-501.57414055,0.00033698,14]
[332694421,1721452308448,-7942.67,0.00033698,14]
[332694422,1721452308457,-500.0,0.00033698,14]
[332694423,1721452308468,-500.0,0.00033698,14]
[332694424,1721452308477,-506.40088747,0.00033698,14]
[332694425,1721452308487,-535.70714913,0.00033698,14]
[332694426,1721452308496,-1474.38,0.00033698,14]
[332694427,1721452308505,-503.25267552,0.00033698,14]
[332694428,1721452308515,-1637.6,0.00033698,14]
[332694429,1721452308524,-3070.19,0.00033698,14]
[332694430,1721452308534,-7567.17,0.00033698,14]
[332694431,1721452308543,-678.65,0.00033698,14]
[332694432,1721452308553,-504.57725295,0.00033698,14]
[332694433,1721452308562,-301.412,0.00033698,7]
[332694434,1721452308572,-500.0,0.00033698,14]
[332694435,1721452308581,-162.24373393,0.00033698,14]
[332694436,1721452308591,-301.412,0.00033698,7]
[332694437,1721452308604,-1535.24,0.00033698,14]
[332694438,1721452308613,-505.84810962,0.00033698,14]
[332694439,1721452308623,-500.0,0.00033698,14]
[332694440,1721452308632,-707.35,0.00033698,14]
[332694441,1721452308642,-500.0,0.00033698,14]
[332694442,1721452308652,-301.412,0.00033698,7]
[332694443,1721452308661,-301.412,0.00033698,7]
[332694444,1721452308670,-1075.68,0.00033698,14]
[332694445,1721452308680,-2237.11,0.00033698,14]
[332694446,1721452308691,-516.34707968,0.00033698,14]
[332694447,1721452308878,-500.0,0.00033698,14]
[332694448,1721452308887,-868.02,0.00033698,14]
[332694449,1721452308897,-500.0,0.00033698,14]
[332694450,1721452308906,-500.0,0.00033698,14]
[332694451,1721452308915,-500.0,0.00033698,14]
[332694452,1721452308924,-500.0,0.00033698,14]
[332694453,1721452308933,-4350.27,0.00033698,14]
[332694454,1721452308943,-4021.1,0.00033698,14]
[332694455,1721452308953,-500.0,0.00033698,14]
[332694456,1721452308962,-2322.17,0.00033698,14]
[332694457,1721452308972,-2299.12,0.00033698,14]
[332694458,1721452308981,-500.0,0.00033698,14]
[332694459,1721452308990,-4549.79,0.00033698,14]
[332694460,1721452308998,-500.0,0.00033698,14]
[332694461,1721452309007,-500.0,0.00033698,14]
[332694462,1721452309016,-690.39,0.00033698,14]
[332694463,1721452309026,-727.88,0.00033698,14]
[332694464,1721452309036,-510.01627373,0.00033698,14]
[332694465,1721452309045,-2308.61,0.00033698,14]
[332694466,1721452309054,-500.0,0.00033698,14]
[332694467,1721452309063,-287.39108678,0.00033698,14]
[332694468,1721452309073,-897.7,0.00033698,14]
[332694469,1721452309082,-2345.67,0.00033698,14]
[332694470,1721452309091,-2219.37,0.00033698,14]
[332694471,1721452309100,-511.88844527,0.00033698,14]
[332694472,1721452309110,-714.91,0.00033698,14]
[332694473,1721452309119,-1447.59,0.00033698,14]
[332694474,1721452309128,-3887.56,0.00033698,14]
[332694475,1721452309137,-500.0,0.00033698,14]
[332694476,1721452309146,-1829.99,0.00033698,14]
[332694477,1721452309155,-366.94080159,0.00033698,14]
[332694478,1721452309164,-500.0,0.00033698,14]
[332694479,1721452309173,-500.0,0.00033698,14]
[332694480,1721452309182,-500.0,0.00033698,14]
[332694481,1721452309192,-500.0,0.00033698,14]
[332694482,1721452309201,-500.0,0.00033698,14]
[332694483,1721452309211,-3908.15,0.00033698,14]
[332694484,1721452309220,-500.0,0.00033698,14]
[332694485,1721452309229,-2286.14,0.00033698,14]
[332694486,1721452309239,-2250.72,0.00033698,14]
[332694487,1721452309248,-500.0,0.00033698,14]
[332694488,1721452309257,-630.28,0.00033698,14]
[332694489,1721452309266,-1101.72,0.00033698,14]
[332694490,1721452309275,-500.0,0.00033698,14]
[332694491,1721452309284,-3419.99,0.00033698,14]
[332694492,1721452309293,-500.0,0.00033698,14]
[332694493,1721452309302,-1956.67,0.00033698,14]
[332694494,1721452309311,-500.0,0.00033698,14]
[332694495,1721452309320,-2493.86,0.00033698,14]
[332694496,1721452309330,-500.0,0.00033698,14]
[332694497,1721452309339,-3643.83,0.00033698,14]
[332694498,1721452309348,-500.0,0.00033698,14]
[332694499,1721452309358,-500.0,0.00033698,14]
[332694500,1721452309368,-503.05651216,0.00033698,14]
[332694501,1721452309377,-1806.09,0.00033698,14]
[332694502,1721452309386,-2478.72,0.00033698,14]
[332694503,1721452309396,-504.56520034,0.00033698,14]
[332694504,1721452309406,-500.0,0.00033698,14]
[332694505,1721452309415,-500.0,0.00033698,14]
[332694506,1721452309424,-522.24,0.00033698,14]
[332694507,1721452309434,-1611.07,0.00033698,14]
[332694508,1721452309443,-4399.51,0.00033698,14]
[332694509,1721452309452,-500.0,0.00033698,14]
[332694510,1721452309462,-500.0,0.00033698,14]
[332694511,1721452309471,-2764.89,0.00033698,14]
[332694512,1721452309481,-500.0,0.00033698,14]
[332694513,1721452309490,-758.97,0.00033698,14]
[332694514,1721452309500,-1253.47,0.00033698,14]
[332694515,1721452309509,-2010.33,0.00033698,14]
[332694516,1721452309519,-4422.6,0.00033698,14]
[332694517,1721452309528,-518.74025963,0.00033698,14]
[332694518,1721452309538,-500.0,0.00033698,14]
[332694519,1721452309547,-782.08,0.00033698,14]
[332694520,1721452309556,-500.0,0.00033698,14]
[332694521,1721452309566,-3857.12,0.00033698,14]
[332694522,1721452309575,-670.79,0.00033698,14]
[332694523,1721452309584,-500.0,0.00033698,14]
[332694524,1721452309596,-500.0,0.00033698,14]
[332694525,1721452309605,-738.12,0.00033698,14]
[332694526,1721452309614,-500.0,0.00033698,14]
[332694527,1721452309623,-500.0,0.00033698,14]
[332694528,1721452309633,-511.05,0.00033698,14]
[332694529,1721452309642,-500.0,0.00033698,14]
[332694530,1721452309652,-2474.15,0.00033698,14]
[332694531,1721452309662,-2276.68,0.00033698,14]
[332694532,1721452309672,-1039.92,0.00033698,2]
[332694533,1721452309682,-500.0,0.00033698,14]
[332694534,1721452309692,-500.0,0.00033698,14]
[332694535,1721452309701,-2869.88,0.00033698,14]
[332694536,1721452309710,-773.67,0.00033698,14]
[332694537,1721452309719,-500.0,0.00033698,14]
[332694538,1721452309729,-935.74,0.00033698,14]
[332694539,1721452309738,-1504.33,0.00033698,14]
[332694540,1721452309747,-2544.71,0.00033698,14]
[332694541,1721452309757,-500.0,0.00033698,14]
[332694542,1721452309766,-643.79,0.00033698,14]
[332694543,1721452309775,-500.0,0.00033698,14]
[332694544,1721452309784,-1507.73,0.00033698,14]
[332694545,1721452309794,-2587.33,0.00033698,14]
[332694546,1721452309803,-500.0,0.00033698,14]
[332694547,1721452309812,-1314.27,0.00033698,14]
[332694548,1721452309821,-500.0,0.00033698,14]
[332694549,1721452309831,-150.0,0.00033703,120]
[332694550,1721452309841,-151.89152655,0.00033707,7]
[332694551,1721452309850,-151.7227518,0.00033709,7]
[332694552,1721452309860,-228.0,0.0003371,2]
[332694553,1721452309870,-225.0,0.0003371,2]
[332694554,1721452309880,-225.0,0.0003371,2]
[332694555,1721452309890,-225.0,0.0003371,2]
[332694556,1721452309899,-150.28,0.00033785,2]
[332694557,1721452309909,-1000.0,0.000338,2]
[332694558,1721452309918,-225.74,0.000338,2]
[332694559,1721452309928,-203.0,0.0003381,2]
[332694560,1721452309937,-977.75,0.00033856,30]
[332694561,1721452309947,-977.75,0.00033856,30]
[332694562,1721452309956,-591.8043671,0.00033949,2]
[332694563,1721452309966,-7013.2012386,0.00033949,2]
[332694564,1721452309976,-378.7779583,0.00033949,2]
[332694565,1721452309985,-8345.0176627,0.00033949,2]
[332694566,1721452309995,-379.0492833,0.00033949,2]
[332694567,1721452310004,-500.0,0.00033972,14]
[332694568,1721452310013,-503.11737627,0.00033972,14]
[332694569,1721452310023,-510.00142512,0.00033972,14]
[332694570,1721452310032,-500.0,0.00033972,14]
[332694571,1721452310041,-483.27123754,0.00033972,14]
[332694572,1721452310050,-1022.34,0.00033972,14]
[332694573,1721452310059,-506.44536936,0.00033972,14]
[332694574,1721452310068,-512.6368692,0.00033972,14]
[332694575,1721452310077,-500.0,0.00033972,14]
[332694576,1721452310087,-667.24,0.00033972,14]
[332694577,1721452310096,-500.0,0.00033972,14]
[332694578,1721452310105,-703.85,0.00033972,14]
[332694579,1721452310115,-508.80073527,0.00033972,14]
[332694580,1721452310124,-516.55241684,0.00033972,14]